[Event "WYCC 2018 G18"]
[Site "Halkidiki"]
[Date "2018.10.26"]
[Round "7"]
[White "Radeva, Viktoria"]
[Black "Sargsyan, Anna M."]
[Result "0-1"]
[ECO "B10"]
[WhiteElo "2163"]
[BlackElo "2331"]
[Annotator "NA"]
[PlyCount "106"]
[EventDate "2018.10.20"]
[EventType "swiss"]
[EventCountry "GRE"]
[SourceTitle "playchess.com"]
[Source "ChessBase"]
[SourceQuality "1"]
[TimeControl "40/5400+30:1800+30"]

1. e4 {[%emt 0:00:00]} c6 {[%emt 0:00:01]} 2. c4 {[%emt 0:00:00]} d5 {[%emt 0:00:08]} 3. exd5 {[%emt 0:00:00]} cxd5 {[%emt 0:00:07]} 4. cxd5 {[%emt 0:00:00]} Nf6 {[%emt 0:00:11]} 5. Nc3 {[%emt 0:00:00]} Nxd5 {[%emt 0:00:43]} 6. Bc4 {[%emt 0:00:00]} Nxc3 {[%emt 0:05:42]} 7. Qf3 {[%emt 0:01:43]} e6 {[%emt 0:00:16]} 8. dxc3 {[%emt 0:00:10]} Qc7 {[%emt 0:00:26]} 9. Bd3 {[%emt 0:04:07]} Nc6 {[%emt 0:04:06]} 10. Bf4 {[%emt 0:03:59]} e5 {[%emt 0:02:13]} 11. Bg3 {[%emt 0:05:32]} Bd6 {[%emt 0:01:53]} 12. Qe2 {[%emt 0:12:11]} O-O {[%emt 0:05:12]} 13. Nf3 {[%emt 0:04:55]} h6 {[%emt 0:01:20]} 14. O-O {[%emt 0:06:23]} Bg4 {[%emt 0:05:30]} 15. Rad1 {[%emt 0:09:41]} f5 {[%emt 0:06:12]} 16. Qe3 {[%emt 0:12:41]} Rad8 {[%emt 0:05:11]} 17. h3 {[%emt 0:06:31]} Bh5 {[%emt 0:01:54]} 18. Bh2 {[%emt 0:11:03]} e4 {[%emt 0:08:38]} 19. Bc4+ {[%emt 0:00:16]} Kh7 {[%emt 0:03:43]} 20. Rxd6 {[%emt 0:01:48]} Rxd6 {[%emt 0:00:15]} 21. Bxd6 {[%emt 0:06:56]} Qxd6 {[%emt 0:00:05]} 22. Nd4 {[%emt 0:04:19]} Nxd4 {[%emt 0:10:43]} 23. Qxd4 {[%emt 0:02:05]} Qg6 {[%emt 0:00:59]} 24. Re1 {[%emt 0:01:08]} Qg5 {[%emt 0:01:27]} 25. Qe3 {[%emt 0:01:21]} Rd8 {[%emt 0:01:56]} 26. Qxg5 {[%emt 0:00:34]} hxg5 {[%emt 0:00:01]} 27. Be2 {[%emt 0:02:31]} Bf7 {[%emt 0:00:01]} 28. Bb5 {[%emt 0:03:26]} a6 {[%emt 0:00:28]} 29. Ba4 {[%emt 0:00:24]} Rd2 {[%emt 0:00:12]} 30. b4 {[%emt 0:00:18]} Rxa2 {[%emt 0:00:36]} 31. Bd7 {[%emt 0:00:17]} g6 {[%emt 0:01:16]} 32. Bc8 {[%emt 0:00:22]} Bd5 {[%emt 0:00:35]} 33. Rd1 {[%emt 0:00:07]} e3 {[%emt 0:00:28]} 34. fxe3 {[%emt 0:01:10]} Bxg2 {[%emt 0:00:13]} 35. Bxb7 {[%emt 0:00:33]} Bxh3 {[%emt 0:00:02]} 36. c4 {[%emt 0:00:49]} g4 {[%emt 0:02:58]} 37. c5 {[%emt 0:00:17]} g3 {[%emt 0:00:01]} 38. Rc1 {[%emt 0:00:48]} g5 {[%emt 0:02:35]} 39. Bd5 {[%emt 0:00:24]} Rd2 {[%emt 0:01:36]} 40. Bf3 {[%emt 0:00:00]} f4 {[%emt 0:00:00]} 41. exf4 {[%emt 0:02:32]} gxf4 {[%emt 0:06:39]} 42. c6 {[%emt 0:02:40]} Rd4 {[%emt 0:01:23]} 43. c7 {[%emt 0:07:03]} Bc8 {[%emt 0:00:22]} 44. Re1 {[%emt 0:07:04]} Rc4 {[%emt 0:01:29]} 45. Re4 {[%emt 0:02:58]} Rc1+ {[%emt 0:00:58]} 46. Kg2 {[%emt 0:00:05]} Rc2+ {[%emt 0:00:15]} 47. Re2 {[%emt 0:02:45]} Rxc7 {[%emt 0:00:13]} 48. Be4+ {[%emt 0:01:10]} Kh6 {[%emt 0:00:08]} 49. Bd5 {[%emt 0:01:18]} Bf5 {[%emt 0:01:17]} 50. Re5 {[%emt 0:04:56]} Rc2+ {[%emt 0:00:11]} 51. Kg1 {[%emt 0:00:26]} Bg4 {[%emt 0:00:56]} 52. Be6 {[%emt 0:03:22]} Bf3 {[%emt 0:00:07]} 53. Re1 {[%emt 0:00:20]} Rh2 {[%emt 0:00:05]} 0-1

[Event "WYCC 2018 G18"]
[Site "Halkidiki"]
[Date "2018.10.26"]
[Round "7"]
[White "Gajcin, Marina"]
[Black "Obolentseva, Alexandra"]
[Result "0-1"]
[ECO "B96"]
[WhiteElo "2153"]
[BlackElo "2298"]
[Annotator "NA"]
[PlyCount "100"]
[EventDate "2018.10.20"]
[EventType "swiss"]
[EventCountry "GRE"]
[SourceTitle "playchess.com"]
[Source "ChessBase"]
[SourceQuality "1"]
[TimeControl "40/5400+30:1800+30"]

1. e4 {[%emt 0:00:00]} c5 {[%emt 0:00:00]} 2. Nf3 {[%emt 0:00:00]} d6 {[%emt 0:00:00]} 3. d4 {[%emt 0:00:00]} cxd4 {[%emt 0:00:00]} 4. Nxd4 {[%emt 0:00:03]} Nf6 {[%emt 0:00:00]} 5. Nc3 {[%emt 0:00:05]} a6 {[%emt 0:00:03]} 6. Bg5 {[%emt 0:00:07]} e6 {[%emt 0:00:40]} 7. f4 {[%emt 0:00:06]} Nbd7 {[%emt 0:00:05]} 8. Qe2 {[%emt 0:00:30]} h6 {[%emt 0:03:53]} 9. Bh4 {[%emt 0:01:24]} Be7 {[%emt 0:01:48]} 10. O-O-O {[%emt 0:01:18]} Qc7 {[%emt 0:05:25]} 11. g4 {[%emt 0:00:35]} g5 {[%emt 0:01:51]} 12. fxg5 $16 {[%emt 0:03:58] LiveBook: 26 Games} hxg5 {[%emt 0:12:50]} 13. Bxg5 {[%emt 0:02:31]} Ne5 {[%emt 0:00:55]} 14. h4 {[%emt 0:10:30]} Nfxg4 {[%emt 0:08:11]} 15. Bh3 {[%emt 0:02:13]} Bxg5+ {[%emt 0:01:53]} 16. hxg5 {[%emt 0:00:09]} Qe7 {[%emt 0:00:57]} 17. Bxg4 {[%emt 0:39:01]} Rxh1 {[%emt 0:00:08]} 18. Rxh1 {[%emt 0:00:06]} Qxg5+ {[%emt 0:00:06]} 19. Kb1 {[%emt 0:00:29]} Qxg4 {[%emt 0:00:17]} 20. Qh2 {[%emt 0:13:18]} Qg7 {[%emt 0:03:05]} 21. Rg1 {[%emt 0:05:08]} Qf6 {[%emt 0:02:20]} 22. Nf5 {[%emt 0:02:30]} Kd7 {[%emt 0:00:05]} 23. Rd1 {[%emt 0:02:58]} exf5 {[%emt 0:00:37]} 24. Nd5 {[%emt 0:00:05]} Qe6 {[%emt 0:03:50]} 25. exf5 {[%emt 0:03:06]} Qxf5 {[%emt 0:00:06]} 26. Nb6+ {[%emt 0:00:58]} Kc6 {[%emt 0:00:04]} 27. Nxa8 {[%emt 0:00:20]} Be6 {[%emt 0:00:05]} 28. Qd2 {[%emt 0:02:02]} Nc4 {[%emt 0:00:16]} 29. Qg2+ {[%emt 0:05:32]} Bd5 {[%emt 0:00:05]} 30. Qg8 {[%emt 0:00:32]} Be4 {[%emt 0:04:15]} 31. Qe8+ {[%emt 0:02:51]} Kc5 {[%emt 0:00:06]} 32. Rc1 {[%emt 0:00:55]} Qf6 {[%emt 0:02:00]} 33. Qc8+ {[%emt 0:00:35]} Bc6 {[%emt 0:02:00]} 34. c3 {[%emt 0:00:41]} Qf2 {[%emt 0:00:27]} 35. Rc2 {[%emt 0:00:53]} Qf1+ {[%emt 0:01:18]} 36. Rc1 {[%emt 0:00:01]} Nd2+ {[%emt 0:00:16]} 37. Kc2 {[%emt 0:00:04]} Qf2 {[%emt 0:00:05]} 38. b4+ {[%emt 0:01:37]} Kc4 {[%emt 0:00:06]} 39. Qg4+ {[%emt 0:01:04]} Be4+ {[%emt 0:06:26]} 40. Kb2 {[%emt 0:00:00]} Nb3+ {[%emt 0:00:00]} 41. Ka3 {[%emt 0:03:38]} Nxc1 {[%emt 0:01:19]} 42. Qxe4+ {[%emt 0:03:50]} Kxc3 {[%emt 0:02:24]} 43. Qb1 {[%emt 0:00:24]} Qc2 {[%emt 0:01:24]} 44. Qa1+ {[%emt 0:03:50]} Kd2 {[%emt 0:01:30]} 45. Qb2 {[%emt 0:03:43]} Qxb2+ {[%emt 0:00:37]} 46. Kxb2 {[%emt 0:00:01]} f5 {[%emt 0:00:08]} 47. Nb6 {[%emt 0:00:07]} f4 {[%emt 0:00:34]} 48. Nc4+ {[%emt 0:00:27]} Kd3 {[%emt 0:00:13]} 49. Nxd6 {[%emt 0:00:18]} f3 {[%emt 0:00:06]} 50. Nf5 {[%emt 0:02:50]} Ne2 {[%emt 0:00:07]} 0-1

[Event "WYCC 2018 G18"]
[Site "Halkidiki"]
[Date "2018.10.26"]
[Round "7"]
[White "Represa Perez, Mireya"]
[Black "Salimova, Asal"]
[Result "1/2-1/2"]
[ECO "C64"]
[WhiteElo "2151"]
[BlackElo "1870"]
[Annotator "NA"]
[PlyCount "68"]
[EventDate "2018.10.20"]
[EventType "swiss"]
[EventCountry "GRE"]
[SourceTitle "playchess.com"]
[Source "ChessBase"]
[SourceQuality "1"]
[TimeControl "40/5400+30:1800+30"]

1. e4 {[%emt 0:00:00]} e5 {[%emt 0:00:48]} 2. Nf3 {[%emt 0:00:00]} Nc6 {[%emt 0:00:16]} 3. Bb5 {[%emt 0:00:14]} Bc5 {[%emt 0:00:25]} 4. O-O {[%emt 0:01:59]} Qf6 {[%emt 0:00:44]} 5. d3 {[%emt 0:04:45]} h6 {[%emt 0:00:45]} 6. Be3 {[%emt 0:04:15]} Bb6 {[%emt 0:00:41]} 7. Nc3 {[%emt 0:01:45]} Nge7 {[%emt 0:00:49]} 8. a4 {[%emt 0:19:17]} a6 {[%emt 0:05:21]} 9. Bxb6 {[%emt 0:02:38]} cxb6 {[%emt 0:00:07]} 10. Bc4 {[%emt 0:00:11]} O-O {[%emt 0:02:48]} 11. Nd2 {[%emt 0:06:56]} d6 {[%emt 0:03:26]} 12. Ne2 Ng6 {[%emt 0:02:00]} 13. Ba2 {[%emt 0:07:55]} Be6 {[%emt 0:08:47]} 14. Bxe6 {[%emt 0:01:13]} fxe6 {[%emt 0:00:08]} 15. Nc4 {[%emt 0:00:38]} Qd8 {[%emt 0:00:07]} 16. Ng3 {[%emt 0:04:26]} Nf4 {[%emt 0:01:35]} 17. Ne3 {[%emt 0:05:30]} Qg5 {[%emt 0:02:05]} 18. c3 {[%emt 0:03:09]} h5 {[%emt 0:00:41]} 19. Kh1 {[%emt 0:01:21]} h4 {[%emt 0:01:31]} 20. Ne2 Rae8 {[%emt 0:08:31]} 21. Nxf4 {[%emt 0:07:56]} exf4 22. Nc4 f3 {[%emt 0:13:28]} 23. gxf3 {[%emt 0:04:01]} Ne5 24. Rg1 {[%emt 0:01:56]} Qf4 {[%emt 0:00:46]} 25. Nxe5 {[%emt 0:00:34]} dxe5 {[%emt 0:00:49]} 26. Rg4 {[%emt 0:09:57]} Qxf3+ {[%emt 0:00:30]} 27. Qxf3 {[%emt 0:00:05]} Rxf3 {[%emt 0:00:06]} 28. Rd1 {[%emt 0:06:21]} Rxf2 {[%emt 0:01:32]} 29. Rg2 {[%emt 0:01:48]} Ref8 30. d4 {[%emt 0:01:59]} exd4 {[%emt 0:01:15]} 31. cxd4 {[%emt 0:00:05]} h3 {[%emt 0:00:15]} 32. Rg3 {[%emt 0:01:48]} Rf1+ {[%emt 0:03:51]} 33. Rg1 {[%emt 0:01:02]} R1f2 {[%emt 0:00:10]} 34. b3 {[%emt 0:02:33]} Re2 {[%emt 0:01:42]} 1/2-1/2

[Event "WYCC 2018 G18"]
[Site "Halkidiki"]
[Date "2018.10.26"]
[Round "7"]
[White "Rozman, Monika"]
[Black "Di Benedetto, Desiree"]
[Result "0-1"]
[ECO "B32"]
[WhiteElo "2141"]
[BlackElo "2321"]
[Annotator "NA"]
[PlyCount "112"]
[EventDate "2018.10.20"]
[EventType "swiss"]
[EventCountry "GRE"]
[SourceTitle "playchess.com"]
[Source "ChessBase"]
[SourceQuality "1"]
[TimeControl "40/5400+30:1800+30"]

1. e4 {[%emt 0:00:00]} c5 {[%emt 0:00:00]} 2. Nf3 {[%emt 0:00:00]} Nc6 {[%emt 0:00:00]} 3. d4 {[%emt 0:00:01]} cxd4 {[%emt 0:00:00]} 4. Nxd4 {[%emt 0:00:04]} Qb6 $14 {[%emt 0:00:00] LiveBook: 2885 Games} 5. Nb3 {[%emt 0:12:29]} Nf6 {[%emt 0:00:17]} 6. Bd3 {[%emt 0:00:52]} d5 {[%emt 0:04:04]} 7. exd5 {[%emt 0:01:30]} Nxd5 {[%emt 0:00:06]} 8. O-O {[%emt 0:00:27]} e5 {[%emt 0:04:07]} 9. Bc4 {[%emt 0:07:25]} Nf6 {[%emt 0:02:37]} 10. Be3 {[%emt 0:02:08]} Qc7 {[%emt 0:01:54]} 11. Nc3 {[%emt 0:06:07]} Be7 {[%emt 0:09:54]} 12. h3 {[%emt 0:05:07]} O-O {[%emt 0:02:40]} 13. Qe2 {[%emt 0:01:09]} a6 {[%emt 0:03:44]} 14. a4 {[%emt 0:04:04]} Nb4 {[%emt 0:03:46]} 15. a5 {[%emt 0:14:51]} Bd7 {[%emt 0:10:47]} 16. Rfc1 {[%emt 0:10:56]} Rac8 {[%emt 0:03:06]} 17. Nd2 {[%emt 0:00:12]} Bc6 {[%emt 0:09:05]} 18. Bb3 {[%emt 0:03:50]} Nfd5 {[%emt 0:03:05]} 19. Nxd5 {[%emt 0:01:05]} Nxd5 {[%emt 0:02:03]} 20. Re1 {[%emt 0:03:14]} Kh8 {[%emt 0:03:07]} 21. Bb6 {[%emt 0:05:13]} Qd7 {[%emt 0:01:27]} 22. Nf3 {[%emt 0:04:30]} f6 {[%emt 0:04:47]} 23. Rad1 {[%emt 0:00:18]} Nf4 {[%emt 0:00:28]} 24. Qf1 {[%emt 0:09:10]} Qf5 {[%emt 0:03:29]} 25. Re3 {[%emt 0:01:10]} Nxh3+ {[%emt 0:03:06]} 26. gxh3 {[%emt 0:00:10]} Bxf3 {[%emt 0:00:05]} 27. Rxf3 {[%emt 0:01:30]} Qxf3 {[%emt 0:00:08]} 28. Rd3 {[%emt 0:02:14]} Qf5 {[%emt 0:05:07]} 29. Qg2 {[%emt 0:00:51]} e4 {[%emt 0:02:30]} 30. Re3 {[%emt 0:00:31]} Bc5 {[%emt 0:01:22]} 31. Rxe4 {[%emt 0:00:19]} Bxb6 {[%emt 0:01:10]} 32. axb6 {[%emt 0:01:21]} Rfe8 {[%emt 0:02:25]} 33. Bd5 {[%emt 0:00:13]} Rxe4 {[%emt 0:06:26]} 34. Bxe4 {[%emt 0:00:07]} Qd7 {[%emt 0:04:26]} 35. Bxb7 {[%emt 0:02:55]} Rc5 {[%emt 0:03:07]} 36. h4 {[%emt 0:01:25]} Rxc2 {[%emt 0:01:14]} 37. Bxa6 {[%emt 0:00:12]} Rc1+ {[%emt 0:00:41]} 38. Bf1 {[%emt 0:00:14]} Rc6 {[%emt 0:01:57]} 39. b4 {[%emt 0:00:38]} Qb7 {[%emt 0:00:28]} 40. Qe4 {[%emt 0:00:00]} g6 {[%emt 0:00:00]} 41. Qe8+ {[%emt 0:14:56]} Kg7 {[%emt 0:00:31]} 42. Bg2 {[%emt 0:00:08]} Rc1+ {[%emt 0:04:39]} 43. Kh2 {[%emt 0:00:59]} Rc8 {[%emt 0:00:11]} 44. Qe3 {[%emt 0:05:06]} Qb8+ {[%emt 0:00:39]} 45. Qg3 {[%emt 0:00:04]} Qxb6 {[%emt 0:00:44]} 46. Qd3 {[%emt 0:03:15]} Rd8 {[%emt 0:03:22]} 47. Qe4 {[%emt 0:00:12]} Qd6+ {[%emt 0:01:17]} 48. Kg1 {[%emt 0:00:16]} Rb8 {[%emt 0:01:35]} 49. Qe3 {[%emt 0:01:52]} Rxb4 {[%emt 0:01:38]} 50. Qa7+ {[%emt 0:00:06]} Kh6 {[%emt 0:01:01]} 51. Qe3+ {[%emt 0:00:18]} Qf4 {[%emt 0:00:54]} 52. Qd3 {[%emt 0:01:48]} Qc1+ {[%emt 0:01:50]} 53. Bf1 {[%emt 0:00:05]} Rg4+ {[%emt 0:00:21]} 54. Kh2 {[%emt 0:00:07]} Qf4+ {[%emt 0:01:10]} 55. Kh1 {[%emt 0:00:04]} Qxf2 {[%emt 0:00:45]} 56. Qxg6+ {[%emt 0:00:59]} hxg6 {[%emt 0:00:11]} 0-1

[Event "WYCC 2018 G18"]
[Site "Halkidiki"]
[Date "2018.10.26"]
[Round "7"]
[White "Tejaswini, Sagar"]
[Black "Afonasieva, Anna"]
[Result "1-0"]
[ECO "B12"]
[WhiteElo "2139"]
[BlackElo "2245"]
[Annotator "NA"]
[PlyCount "129"]
[EventDate "2018.10.20"]
[EventType "swiss"]
[EventCountry "GRE"]
[SourceTitle "playchess.com"]
[Source "ChessBase"]
[SourceQuality "1"]
[TimeControl "40/5400+30:1800+30"]

1. e4 {[%emt 0:00:00]} c6 {[%emt 0:00:00]} 2. d4 {[%emt 0:00:00]} d5 {[%emt 0:00:00]} 3. f3 {[%emt 0:00:00]} e6 {[%emt 0:02:12]} 4. Nc3 {[%emt 0:00:07]} Bb4 {[%emt 0:11:18]} 5. Nge2 {[%emt 0:00:50]} c5 {[%emt 0:08:26]} 6. a3 $16 {[%emt 0:07:44]} Bxc3+ {[%emt 0:01:32]} 7. Nxc3 {[%emt 0:01:55]} dxe4 {[%emt 0:01:53]} 8. dxc5 {[%emt 0:03:38]} Qxd1+ {[%emt 0:02:27]} 9. Kxd1 {[%emt 0:00:07]} exf3 {[%emt 0:05:47]} 10. gxf3 {[%emt 0:02:09]} Nc6 {[%emt 0:05:03]} 11. Rg1 {[%emt 0:06:43]} g6 {[%emt 0:03:07]} 12. Ne4 {[%emt 0:02:52]} Kf8 {[%emt 0:05:50]} 13. b4 {[%emt 0:03:10]} Kg7 {[%emt 0:02:04]} 14. Bb2+ {[%emt 0:03:14]} e5 {[%emt 0:07:36]} 15. b5 {[%emt 0:06:12]} Nd4 {[%emt 0:03:10]} 16. Bxd4 {[%emt 0:03:51]} exd4 {[%emt 0:00:06]} 17. Nd6 {[%emt 0:03:40]} Ne7 {[%emt 0:02:25]} 18. Bc4 {[%emt 0:01:00]} Nf5 {[%emt 0:02:22]} 19. Nxf5+ {[%emt 0:03:27]} Bxf5 {[%emt 0:00:05]} 20. Bd5 {[%emt 0:00:09]} Rac8 {[%emt 0:01:32]} 21. c6 {[%emt 0:06:22]} bxc6 {[%emt 0:00:37]} 22. Bxc6 {[%emt 0:00:44]} Rhd8 {[%emt 0:00:33]} 23. a4 {[%emt 0:05:27]} Rc7 {[%emt 0:07:24]} 24. Re1 {[%emt 0:04:31]} Kf6 {[%emt 0:01:47]} 25. Ra3 {[%emt 0:05:13]} g5 {[%emt 0:07:04]} 26. Kd2 {[%emt 0:02:54]} h5 {[%emt 0:00:59]} 27. Rb3 {[%emt 0:08:25]} g4 {[%emt 0:04:28]} 28. fxg4 {[%emt 0:01:21]} hxg4 {[%emt 0:00:41]} 29. Be4 {[%emt 0:04:19]} Re8 {[%emt 0:08:15]} 30. Bxf5 {[%emt 0:00:18]} Rxe1 {[%emt 0:00:04]} 31. Kxe1 {[%emt 0:00:04]} Kxf5 {[%emt 0:00:04]} 32. Kd2 {[%emt 0:00:14]} Ke4 {[%emt 0:00:12]} 33. a5 {[%emt 0:01:13]} f5 {[%emt 0:00:25]} 34. b6 {[%emt 0:04:02]} axb6 {[%emt 0:00:21]} 35. axb6 {[%emt 0:00:03]} Rb7 {[%emt 0:00:17]} 36. Rb4 {[%emt 0:03:45]} Kf3 {[%emt 0:01:59]} 37. Kd3 {[%emt 0:00:23]} Kg2 {[%emt 0:01:06]} 38. Kxd4 {[%emt 0:00:19]} Kxh2 {[%emt 0:00:28]} 39. c4 {[%emt 0:00:59]} f4 {[%emt 0:02:36]} 40. c5 {[%emt 0:00:00]} g3 {[%emt 0:00:00]} 41. Ke4 {[%emt 0:09:18]} Kh3 {[%emt 0:22:32]} 42. c6 {[%emt 0:06:40]} g2 {[%emt 0:02:23]} 43. Rb3+ {[%emt 0:01:47]} Kh4 {[%emt 0:03:40]} 44. cxb7 {[%emt 0:00:40]} g1=Q {[%emt 0:00:07]} 45. b8=Q {[%emt 0:00:08]} Qg2+ {[%emt 0:02:53]} 46. Kd4 {[%emt 0:00:52]} Qd2+ {[%emt 0:00:35]} 47. Rd3 {[%emt 0:01:30]} Qb2+ {[%emt 0:01:00]} 48. Rc3 {[%emt 0:00:55]} Qd2+ {[%emt 0:01:08]} 49. Kc4 {[%emt 0:00:08]} Qa2+ {[%emt 0:00:21]} 50. Kc5 {[%emt 0:01:22]} Qf2+ {[%emt 0:01:43]} 51. Kb4 {[%emt 0:00:34]} Qb2+ {[%emt 0:00:06]} 52. Rb3 {[%emt 0:01:54]} Qd2+ {[%emt 0:00:22]} 53. Rc3 {[%emt 0:00:40]} Qb2+ {[%emt 0:00:08]} 54. Kc4 {[%emt 0:00:01]} Qa2+ {[%emt 0:00:13]} 55. Kc5 {[%emt 0:00:17]} Qf2+ {[%emt 0:00:13]} 56. Kd6 {[%emt 0:03:42]} Qd2+ {[%emt 0:02:19]} 57. Ke6 {[%emt 0:00:12]} Qxc3 {[%emt 0:00:24]} 58. Qxf4+ {[%emt 0:00:02]} Kh3 {[%emt 0:00:14]} 59. Qf5+ {[%emt 0:00:03]} Kg2 {[%emt 0:00:12]} 60. Qe4+ {[%emt 0:00:01]} Kh3 {[%emt 0:01:02]} 61. b7 {[%emt 0:00:31]} Qb3+ {[%emt 0:00:08]} 62. Ke7 {[%emt 0:00:18]} Qb5 {[%emt 0:00:58]} 63. Qf3+ {[%emt 0:01:43]} Kh4 {[%emt 0:00:51]} 64. Qf4+ {[%emt 0:00:05]} Kh3 {[%emt 0:00:22]} 65. b8=Q {[%emt 0:00:35]} 1-0

[Event "WYCC 2018 G18"]
[Site "Halkidiki"]
[Date "2018.10.26"]
[Round "7"]
[White "Egyed, Judit"]
[Black "Cibikova, Sofia Anna"]
[Result "1-0"]
[ECO "B43"]
[WhiteElo "2089"]
[BlackElo "1809"]
[Annotator "NA"]
[PlyCount "55"]
[EventDate "2018.10.20"]
[EventType "swiss"]
[EventCountry "GRE"]
[SourceTitle "playchess.com"]
[Source "ChessBase"]
[SourceQuality "1"]
[TimeControl "40/5400+30:1800+30"]

1. e4 {[%emt 0:00:00]} c5 {[%emt 0:00:00]} 2. Nf3 {[%emt 0:00:00]} e6 {[%emt 0:00:00]} 3. d4 {[%emt 0:00:00]} cxd4 {[%emt 0:00:00]} 4. Nxd4 {[%emt 0:00:00]} a6 {[%emt 0:00:57]} 5. Nc3 {[%emt 0:00:04]} b5 {[%emt 0:00:19]} 6. Bd3 {[%emt 0:01:01]} Qb6 {[%emt 0:01:02]} 7. Be3 {[%emt 0:01:13]} Bc5 {[%emt 0:01:50]} 8. Nce2 {[%emt 0:01:16]} Nf6 {[%emt 0:06:34]} 9. c3 {[%emt 0:05:20]} Ng4 {[%emt 0:11:20]} 10. b4 {[%emt 0:02:50]} Nxe3 {[%emt 0:02:17]} 11. fxe3 {[%emt 0:03:46]} Be7 {[%emt 0:02:09]} 12. Ng3 {[%emt 0:06:24]} Nc6 {[%emt 0:06:29]} 13. O-O {[%emt 0:04:50]} O-O {[%emt 0:04:28]} 14. Qh5 {[%emt 0:12:23]} g6 {[%emt 0:03:59]} 15. Qh6 {[%emt 0:00:59]} Nxd4 {[%emt 0:08:03]} 16. Nh5 {[%emt 0:09:21]} gxh5 {[%emt 0:04:59]} 17. e5 {[%emt 0:00:51]} f5 {[%emt 0:06:12]} 18. exf6 {[%emt 0:00:10]} Nf5 {[%emt 0:00:48]} 19. Bxf5 {[%emt 0:02:56]} Rf7 {[%emt 0:03:45]} 20. Bxh7+ {[%emt 0:01:37]} Rxh7 {[%emt 0:00:23]} 21. f7+ {[%emt 0:00:28]} Rxf7 {[%emt 0:01:20]} 22. Rxf7 {[%emt 0:01:07]} Kxf7 {[%emt 0:01:51]} 23. Rf1+ {[%emt 0:00:04]} Kg8 {[%emt 0:00:24]} 24. Qg6+ {[%emt 0:00:06]} Kh8 {[%emt 0:00:06]} 25. Qe8+ {[%emt 0:00:21]} Kg7 {[%emt 0:01:51]} 26. Rf7+ {[%emt 0:00:39]} Kh6 {[%emt 0:00:38]} 27. Qh8+ {[%emt 0:00:05]} Kg5 {[%emt 0:00:19]} 28. Qg7+ {[%emt 0:00:04]} 1-0

[Event "WYCC 2018 G18"]
[Site "Halkidiki"]
[Date "2018.10.26"]
[Round "7"]
[White "Janiashvili, Mariami"]
[Black "Vlkova, Anezka"]
[Result "1-0"]
[ECO "E73"]
[WhiteElo "2081"]
[BlackElo "1925"]
[Annotator "NA"]
[PlyCount "95"]
[EventDate "2018.10.20"]
[EventType "swiss"]
[EventCountry "GRE"]
[SourceTitle "playchess.com"]
[Source "ChessBase"]
[SourceQuality "1"]
[TimeControl "40/5400+30:1800+30"]

1. d4 {[%emt 0:00:00]} Nf6 {[%emt 0:00:00]} 2. c4 {[%emt 0:00:00]} g6 {[%emt 0:00:00]} 3. Nc3 {[%emt 0:00:00]} Bg7 {[%emt 0:00:00]} 4. e4 {[%emt 0:00:00]} d6 {[%emt 0:00:00]} 5. Be2 $14 {[%emt 0:00:00] LiveBook: 11467 Games} O-O {[%emt 0:00:00]} 6. Bg5 c5 7. d5 {[%emt 0:00:27]} e6 {[%emt 0:00:26]} 8. Qd2 {[%emt 0:00:38]} exd5 {[%emt 0:00:04]} 9. cxd5 {[%emt 0:04:17]} Qa5 {[%emt 0:03:56]} 10. f3 {[%emt 0:06:32]} a6 {[%emt 0:02:36]} 11. g4 {[%emt 0:07:55]} Nbd7 {[%emt 0:08:12]} 12. h4 {[%emt 0:06:40]} h5 {[%emt 0:00:37]} 13. gxh5 {[%emt 0:01:09]} Nxh5 {[%emt 0:00:37]} 14. Be7 {[%emt 0:00:46]} Be5 {[%emt 0:00:12]} 15. Bxf8 {[%emt 0:01:09]} Kxf8 {[%emt 0:00:26]} 16. Nh3 {[%emt 0:03:19]} Qd8 {[%emt 0:11:40]} 17. f4 {[%emt 0:13:43]} Qxh4+ {[%emt 0:05:10]} 18. Nf2 {[%emt 0:00:13]} Qxf4 {[%emt 0:00:14]} 19. Bxh5 {[%emt 0:00:53]} Qxd2+ {[%emt 0:02:16]} 20. Kxd2 {[%emt 0:00:08]} gxh5 {[%emt 0:00:09]} 21. Rxh5 {[%emt 0:00:21]} b5 {[%emt 0:01:17]} 22. Nd3 {[%emt 0:03:44]} Bg7 {[%emt 0:01:09]} 23. Rf1 {[%emt 0:01:05]} Nb6 {[%emt 0:02:40]} 24. b3 {[%emt 0:02:46]} c4 {[%emt 0:06:42]} 25. Nf4 {[%emt 0:01:09]} Ke8 {[%emt 0:01:17]} 26. Kc2 {[%emt 0:15:46]} b4 {[%emt 0:02:23]} 27. Nce2 {[%emt 0:01:24]} cxb3+ {[%emt 0:01:05]} 28. Kxb3 {[%emt 0:02:10]} a5 {[%emt 0:13:43]} 29. Rh7 {[%emt 0:04:01]} Be5 {[%emt 0:01:27]} 30. Nd3 {[%emt 0:02:15]} Nd7 {[%emt 0:12:51]} 31. Rfxf7 {[%emt 0:05:29]} a4+ {[%emt 0:11:40]} 32. Kc2 {[%emt 0:02:24]} b3+ {[%emt 0:03:20]} 33. axb3 {[%emt 0:00:08]} a3 {[%emt 0:01:20]} 34. Nxe5 {[%emt 0:00:14]} Nxe5 {[%emt 0:00:41]} 35. Ra7 {[%emt 0:00:24]} Rxa7 {[%emt 0:00:46]} 36. Rxa7 {[%emt 0:00:01]} Bg4 {[%emt 0:00:42]} 37. Nd4 {[%emt 0:00:20]} Bh3 {[%emt 0:01:24]} 38. Nb5 {[%emt 0:01:38]} Nf7 {[%emt 0:00:56]} 39. Rxa3 {[%emt 0:00:51]} Bg2 {[%emt 0:00:33]} 40. Ra8+ {[%emt 0:00:00]} Ke7 {[%emt 0:00:00]} 41. Ra7+ Kf6 {[%emt 0:00:49]} 42. Rxf7+ {[%emt 0:03:18]} Kxf7 {[%emt 0:00:03]} 43. Nxd6+ {[%emt 0:00:07]} Ke7 {[%emt 0:00:26]} 44. Nf5+ Kf6 45. Kd3 {[%emt 0:01:29]} Ke5 {[%emt 0:00:42]} 46. Ng3 {[%emt 0:00:07]} Bh3 {[%emt 0:00:59]} 47. Ke3 {[%emt 0:00:25]} Bg4 {[%emt 0:01:23]} 48. Nf1 {[%emt 0:00:40]} 1-0